Workbook

Sheet паспорт
A1: ПАТ "УКРТРАНСГАЗ" | G1: ПАСПОРТ ФІЗИКО-ХІМІЧНИХ ПОКАЗНИКІВ ПРИРОДНОГО ГАЗУ № 875
A2: Філія "УМГ "Черкаситрансгаз" | G2: переданого Кременчуцьким ЛВУМГ та прийнятого ПАТ "Кременчукгаз", ПП "Будінвест центр"
A3: Кременчуцьке ЛВУМГ | G3: Маршрут № 875
A4: Вимірювальна хіміко-аналітична лабораторія
A5: Кременчуцького промислового майданчика
A6: Свідоцтво № 0612 КФ від 30.12.15р. чинне до 20.06.19р. | J6: по газопроводу "Диканька-Кременчук-Кривий Ріг" | V6: за період з | X6: 2017-02-01 | Z6: по | AA6: 2017-02-28
A8: Число місяця | B8: Компонентний склад, % мол. | N8: Фізико-хімічні показники газу обчислені на основі компонентного складу, 101,325 кПа | X8: Температура точки роси за вологою (Р = 3.92 МПа), °С | Y8: Температура точки роси за вуглеводнями, °С | Z8: Вміст сірководню, г/м3 | AA8: Вміст меркаптанової сірки, г/м3 | AB8: Вміст механічних домішок, г/м3
N9: Густина абсолютна, кг/м3,при 20 °С, | O9: Температура вимірювання/згоряння при 20/25°С
B10: метан, С1 | C10: етан, С2 | D10: пропан, С3 | E10: ізо-бутан, і-С4 | F10: н-бутан, н-С4 | G10: нео-пентан, нео-С5 | H10: ізо-пентан, і-С5 | I10: н-пентан, н-С5 | J10: гексани та вищі, С6+ | K10: кисень, О2 | L10: азот, N2 | M10: діоксид вуглецю, CО2 | O10: Теплота згоряння нижча | R10: Теплота згоряння вища | U10: Число Воббе вище
O11: ккал/м³ | P11: МДж/м³ | Q11: кВт⋅год/м³ | R11: ккал/м³ | S11: МДж/м³ | T11: кВт⋅год/м³ | U11: ккал/м³ | V11: МДж/м³ | W11: кВт⋅год/м³
A12: 1 | O12: =P12*238.8459 -> 8237.795091 | P12: 34.49 | Q12: =P12/3.6 -> 9.580555556 | R12: =S12*238.8459 -> 9128.690298 | S12: 38.22 | T12: =S12/3.6 -> 10.61666667 | AC12: =SUM(B12:M12)+$K$43+$N$43 -> 0
A13: 2 | O13: =P13*238.8459 -> 8237.795091 | P13: 34.49 | Q13: 9.580555556 | R13: =S13*238.8459 -> 9128.690298 | S13: 38.22 | T13: 10.61666667 | AC13: 0
A14: 3 | O14: 8237.795091 | P14: 34.49 | Q14: 9.580555556 | R14: 9128.690298 | S14: 38.22 | T14: 10.61666667 | AC14: 0 | AD14: =IF(AC14=100,"ОК"," ") -> 
A15: 4 | O15: 8237.795091 | P15: 34.49 | Q15: 9.580555556 | R15: 9128.690298 | S15: 38.22 | T15: 10.61666667 | AC15: 0 | AD15: =IF(AC15=100,"ОК"," ") -> 
A16: 5 | O16: 8237.795091 | P16: 34.49 | Q16: 9.580555556 | R16: 9128.690298 | S16: 38.22 | T16: 10.61666667 | AC16: 0
A17: 6 | B17: 91.029 | C17: 4.325 | D17: 1.074 | E17: 0.119 | F17: 0.199 | G17: 0.004 | H17: 0.052 | I17: 0.043 | J17: 0.057 | K17: 0.001 | L17: 1.65 | M17: 1.447 | N17: 0,7409 | O17: 8242.572009 | P17: 34.51 | Q17: 9.586111111 | R17: 9131.078757 | S17: 38.23 | T17: 10.61944444 | U17: 11 642 | V17: 48,74 | W17: =V17/3.6 -> 13.53888889 | X17: -12,5 | AC17: 100 | AD17: ОК
A18: 7 | O18: 8242.572009 | P18: 34.51 | Q18: 9.586111111 | R18: 9131.078757 | S18: 38.23 | T18: 10.61944444 | AC18: 0
A19: 8 | O19: 8242.572009 | P19: 34.51 | Q19: 9.586111111 | R19: 9131.078757 | S19: 38.23 | T19: 10.61944444 | AC19: 0
A20: 9 | O20: 8242.572009 | P20: 34.51 | Q20: 9.586111111 | R20: 9131.078757 | S20: 38.23 | T20: 10.61944444 | AC20: 0
A21: 10 | O21: 8242.572009 | P21: 34.51 | Q21: =P21/3.6 -> 9.586111111 | R21: 9131.078757 | S21: 38.23 | T21: =S21/3.6 -> 10.61944444 | AC21: 0
A22: 11 | O22: 8242.572009 | P22: 34.51 | Q22: 9.586111111 | R22: 9131.078757 | S22: 38.23 | T22: 10.61944444 | AC22: 0
A23: 12 | O23: 8242.572009 | P23: 34.51 | Q23: 9.586111111 | R23: 9131.078757 | S23: 38.23 | T23: 10.61944444 | AC23: 0
A24: 13 | B24: 91.4519 | C24: 4.1376 | D24: 1.0658 | E24: 0.1198 | F24: 0.1927 | G24: 0.0043 | H24: 0.0493 | I24: 0.041 | J24: 0.059 | K24: 0.0011 | L24: 1.5119 | M24: 1.3656 | N24: 0,7379 | O24: 8244.960468 | P24: 34.52 | Q24: 9.588888889 | R24: 9135.855675 | S24: 38.25 | T24: 10.625 | U24: 11 671 | V24: 48,86 | W24: =V24/3.6 -> 13.57222222 | X24: -11,2 | AC24: 100 | AD24: ОК
A25: 14 | O25: 8244.960468 | P25: 34.52 | Q25: 9.588888889 | R25: 9135.855675 | S25: 38.25 | T25: 10.625 | AC25: 0
A26: 15 | O26: 8244.960468 | P26: 34.52 | Q26: 9.588888889 | R26: 9135.855675 | S26: 38.25 | T26: 10.625 | AC26: 0
A27: 16 | O27: 8244.960468 | P27: 34.52 | Q27: =P27/3.6 -> 9.588888889 | R27: 9135.855675 | S27: 38.25 | T27: =S27/3.6 -> 10.625 | AC27: 0
A28: 17 | O28: 8244.960468 | P28: 34.52 | Q28: 9.588888889 | R28: 9135.855675 | S28: 38.25 | T28: 10.625 | AC28: 0
A29: 18 | O29: 8244.960468 | P29: 34.52 | Q29: 9.588888889 | R29: 9135.855675 | S29: 38.25 | T29: 10.625 | AC29: 0
A30: 19 | O30: 8244.960468 | P30: 34.52 | Q30: 9.588888889 | R30: 9135.855675 | S30: 38.25 | T30: 10.625 | AC30: 0
A31: 20 | B31: 90.9211 | C31: 4.316 | D31: 1.21 | E31: 0.1319 | F31: 0.225 | G31: 0.0043 | H31: 0.0536 | I31: 0.0445 | J31: 0.0624 | K31: 0.001 | L31: 1.3733 | M31: 1.6569 | N31: 0,7444 | O31: 8273.621976 | P31: 34.64 | Q31: 9.622222222 | R31: 9164.517183 | S31: 38.37 | T31: 10.65833333 | U31: 11 657 | V31: 48,81 | W31: 13.55833333 | X31: -9,3 | AC31: 100 | AD31: =IF(AC31=100,"ОК"," ") -> ОК
A32: 21 | O32: 8273.621976 | P32: 34.64 | Q32: 9.622222222 | R32: 9164.517183 | S32: 38.37 | T32: 10.65833333 | AC32: 0
A33: 22 | O33: 8273.621976 | P33: 34.64 | Q33: 9.622222222 | R33: 9164.517183 | S33: 38.37 | T33: 10.65833333 | AC33: 0
A34: 23 | O34: 8273.621976 | P34: 34.64 | Q34: =P34/3.6 -> 9.622222222 | R34: 9164.517183 | S34: 38.37 | T34: =S34/3.6 -> 10.65833333 | AC34: 0 | AD34: =IF(AC34=100,"ОК"," ") -> 
A35: 24 | O35: 8273.621976 | P35: 34.64 | Q35: 9.622222222 | R35: 9164.517183 | S35: 38.37 | T35: 10.65833333 | AC35: 0
A36: 25 | O36: 8273.621976 | P36: 34.64 | Q36: 9.622222222 | R36: 9164.517183 | S36: 38.37 | T36: 10.65833333 | AC36: 0
A37: 26 | O37: 8273.621976 | P37: 34.64 | Q37: 9.622222222 | R37: 9164.517183 | S37: 38.37 | T37: =S37/3.6 -> 10.65833333 | AC37: 0
A38: 27 | B38: 91.3916 | C38: 4.092 | D38: 1.0937 | E38: 0.1225 | F38: 0.1992 | G38: 0.0041 | H38: 0.0496 | I38: 0.0416 | J38: 0.056 | K38: 0.0012 | L38: 1.5235 | M38: 1.425 | N38: 0,7388 | O38: 8242.572009 | P38: 34.51 | Q38: 9.586111111 | R38: 9131.078757 | S38: 38.23 | T38: 10.61944444 | U38: 11 658 | V38: 48,81 | W38: 13.55833333 | X38: -9,0 | Z38: 0,0030 | AA38: 0,0040 | AB38: відсутні | AC38: 100 | AD38: ОК
A39: 28 | O39: 8242.572009 | P39: 34.51 | Q39: 9.586111111 | R39: 9131.078757 | S39: 38.23 | T39: 10.61944444 | AC39: 0
A40: 29 | O40: 0 | P40: 0 | Q40: =P40/3.6 -> 0 | R40: 0 | S40: 0 | T40: =S40/3.6 -> 0 | AC40: 0
A41: 30 | O41: 0 | P41: 0 | Q41: =P41/3.6 -> 0 | R41: 0 | S41: 0 | T41: =S41/3.6 -> 0 | AC41: 0
A42: 31 | O42: 0 | P42: 0 | Q42: =P42/3.6 -> 0 | R42: 0 | S42: 0 | T42: =S42/3.6 -> 0 | AC42: 0
A43: Вміст одоранта при одоризації становить 16 г на 1 000 м³ газу | O43: =8249 -> 8249 | P43: =AVERAGEA(P12:P39) -> 34.54142857 | Q43: 9.59484127 | R43: 9140.206082 | S43: 38.26821429 | T43: 10.63005952
H44: Середньозважене значення теплоти згоряння:
B46: Начальник управління Кременчуцького ЛВУМГ Кучерук В.М. | Z46: 02.03.2017 р.
C47: Підрозділу підприємства, якому підпорядкована лабораторія | M47: прізвище | V47: підпис | Z47: дата
B48: Начальник лабораторії ВХАЛ Кучерук Н.М. | Z48: 02.03.2017 р.
C49: Лабораторія, де здійснювалось вимірювання газу | M49: прізвище | V49: підпис | Z49: дата
B50: Провідний економіст із збуту Кривулькін І.В. | Z50: 02.03.2017 р.
C51: Підрозділу, відповідального за облік газу за маршрутом | M51: прізвище | V51: підпис | Z51: дата

Sheet додаток
A2: Додаток до Паспорту фізико-хімічних показників природного газу № 875
A4: Область | B4: ГРС, прямий споживач | C4: Cередньозважене значення вищої теплоти згоряння
C5: МДж/м³ | D5: ккал/м³ | E5: кВт*год./м³
A6: Полтавська область | B6: ГРС Комсомольськ лінія ГЗК | C6: 38.2659099 | D6: 9139.655689 | E6: 10.62941942
B7: ГРС Комсомольськ Місто | C7: 38.26135396 | D7: 9138.567522 | E7: 10.62815388
B8: ПП "Будінвест центр" | C8: 38.26784259 | D8: 9140.117304 | E8: 10.62995627
A9: Середньозважене значення вищої теплоти згоряння по маршруту № 875 | C9: 38.26548677 | D9: 9139.554626 | E9: 10.62930188
A13: Начальник управління Кременчуцького ЛВУМГ Кучерук В.Н. | F13: 02.03.2017 р.
A14: Підрозділу підприємства, якому підпорядкована лабораторія | D14: прізвище | E14: підпис | F14: дата
A15: Начальник лабораторії ВХАЛ Кучерук Н.М. | F15: 02.03.2017 р.
A16: Лабораторія, де здійснювалось вимірювання газу | D16: прізвище | E16: підпис | F16: дата
A17: Провідний економіст із збуту Кривулькін І.В. | F17: 02.03.2017 р.
A18: Підрозділу, відповідального за облік газу за маршрутом | D18: прізвище | E18: підпис | F18: дата

Sheet variablesList (hidden)
A1: 3 | B1: x:\gaysin | C1: 10, 11, 24, 25, 127, 128, 132, 180, 207, 215 | D1: x:\
B2: x:\Illinci
B3: x:\Talne
